Cogmind - Beta 14 @@@ ROGUE MODE // 2025.01.15 @ 01:25:09 // AFD2020/Player2 Player: KTG-V3 Result: Core destroyed Performance ------------- Evolutions (6) 3000 Regions Visited (15) 3000 Robots Destroyed (165) 825 Value Destroyed (4873) 4873 Prototype IDs (39) 780 Alien Tech Used (0) 0 Bonus (2780) 2780 TOTAL SCORE: 15258 Bonus ------- High Alert Combat Kills 632 Follower Combat Kills 2670 Aligned with FarCom 300 Friendly Fire -822 Cogmind --------- Core Integrity 0/1150 Matter 144/300 Energy 83/160 System Corruption 0% Temperature Cool (12) Movement Flying (28) Location -4/Factory Parts ------- > --- POWER (1) -------- Light Nuclear Core > --- PROPULSION (6) --- Cooled VTOL Module Cooled VTOL Module Nuclear Pulse Array Nuclear Pulse Array > --- UTILITY (6) ------ Improved Cooling System Weapon Mount Hacking Suite Hacking Suite Advanced Hacking Suite Long-range Tractor Beam > --- WEAPON (6) ------- Enhanced Autogun Enhanced Autogun Enhanced Autogun Enhanced Autogun Enhanced Autogun Enhanced Autogun > --- INVENTORY (5) ---- Micro Nuclear Core Cooled VTOL Module Recoil Nullifier Phase Cannon Peak State ------------ > --- POWER ------------ Light Nuclear Core > --- PROPULSION ------- Cooled VTOL Module Cooled VTOL Module Nuclear Pulse Array Nuclear Pulse Array > --- UTILITY ---------- Improved Cooling System Hacking Suite Hacking Suite Advanced Hacking Suite Improved System Shield Long-range Tractor Beam > --- WEAPON ----------- Enhanced Autogun Enhanced Autogun Enhanced Autogun Enhanced Autogun Enhanced Autogun Enhanced Autogun > --- INVENTORY -------- Micro Nuclear Core Cooled VTOL Module Weapon Mount Recoil Nullifier Phase Cannon [Rating: 90] Favorites ----------- Power Light Nuclear Core Engine Heavy Ion Engine Power Core Light Nuclear Core Propulsion Improved Flight Unit Leg Carbon-fiber Leg Wheel Wheel Flight Unit Improved Flight Unit Utility Hacking Suite Device Improved Cooling System Storage Huge Storage Unit Processor Enhanced Optical Array Hackware Hacking Suite Protection Hardened Light Armor Plating Weapon Enhanced Autogun Energy Gun Medium Laser Energy Cannon Beam Cannon Ballistic Gun Enhanced Autogun Ballistic Cannon Improved Light Cannon Launcher Grenade Launcher Impact Weapon Heavy Flail Slashing Weapon Longsword +1 Build | -11 -10 -10 -9 -9 -9 -8 -8 -7 -7 -7 -6 -5 -5 -5 -4 ------- Run | Yrd Mat Min Mat Min Exi Min Mat Fac Low Low Fac Fac Upp Upp Fac Slots Evolved 12 | . . . 2 . . . 2 2 . . 2 2 . . 2 Power . | . . . . . . . . . . . . . . . . Propulsion 4 | . . . . . . . 1 1 . . 1 . . . 1 Utility 4 | . . . 1 . . . 1 . . . 1 1 . . . Weapon 4 | . . . 1 . . . . 1 . . . 1 . . 1 Parts Attached 141 | 8 13 2 14 3 5 . 17 32 4 . 15 11 2 . 15 Power 6 | 1 . . 2 . . . . 3 . . . . . . . Engine 4 | 1 . . 2 . . . . 1 . . . . . . . Core 2 | . . . . . . . . 2 . . . . . . . Reactor . | . . . . . . . . . . . . . . . . Propulsion 38 | 2 9 1 3 . . . 6 4 3 . 4 4 . . 2 Treads . | . . . . . . . . . . . . . . . . Leg 2 | . . . . . . . . . 2 . . . . . . Wheel 20 | 2 8 1 3 . . . 6 . . . . . . . . Hover . | . . . . . . . . . . . . . . . . Flight 16 | . 1 . . . . . . 4 1 . 4 4 . . 2 Utility 41 | 2 1 . 4 1 1 . 5 12 . . 2 3 . . 10 Device 24 | 1 . . 3 . 1 . 3 5 . . . 2 . . 9 Storage 3 | 1 1 . 1 . . . . . . . . . . . . Processor 2 | . . . . . . . . 1 . . 1 . . . . Hackware 9 | . . . . . . . . 6 . . 1 1 . . 1 Protection 3 | . . . . 1 . . 2 . . . . . . . . Artifact . | . . . . . . . . . . . . . . . . Weapon 56 | 3 3 1 5 2 4 . 6 13 1 . 9 4 2 . 3 Energy Gun 3 | 2 . 1 . . . . . . . . . . . . . Energy Cannon 12 | . 1 . 2 1 2 . 1 . . . 2 1 1 . 1 Ballistic Gun 31 | 1 1 . 2 . 1 . 3 11 1 . 5 3 1 . 2 Ballistic Cannon 1 | . 1 . . . . . . . . . . . . . . Launcher 2 | . . . 1 1 . . . . . . . . . . . Special Weapon . | . . . . . . . . . . . . . . . . Impact Weapon 2 | . . . . . . . . . . . 2 . . . . Slashing Weapon 5 | . . . . . 1 . 2 2 . . . . . . . Piercing Weapon . | . . . . . . . . . . . . . . . . Special Melee Weapon . | . . . . . . . . . . . . . . . . Unidentified Prototypes 1 | . 1 . . . . . . . . . . . . . . Parts Lost 2 | . . . . . . . . 1 . . . . . . 1 Power . | . . . . . . . . . . . . . . . . Propulsion . | . . . . . . . . . . . . . . . . Utility 2 | . . . . . . . . 1 . . . . . . 1 Weapon . | . . . . . . . . . . . . . . . . Highest Loss Streak 1 | . . . . . . . . 1 . . . . . . 1 To Critical Strikes . | . . . . . . . . . . . . . . . . Average Slot Usage (%) 97 | . 100 100 98 100 75 100 99 99 100 100 99 93 94 94 88 Engine 5 | . 14 14 11 11 11 11 9 4 . . . . . . . Core 2 | . . . . . . . . 2 7 7 6 5 5 5 5 Wheel 11 | . 28 28 22 22 22 22 27 . . . . . . . . Flight 15 | . . . . . . . . 29 30 30 32 23 23 23 21 Device 11 | . 14 14 21 17 11 11 16 5 7 7 6 10 11 11 9 Storage 5 | . 14 14 11 11 11 11 9 . . . . . . . . Hackware 12 | . . . . . . . . 22 23 23 22 23 23 23 20 Protection 2 | . . . . 4 11 11 9 . . . . . . . . Energy Gun 2 | . 14 14 5 . . . . . . . . . . . . Energy Cannon 5 | . 2 14 16 21 3 22 9 . . . 1 . . . . Ballistic Gun 19 | . 8 . 9 11 1 11 16 28 30 30 21 28 28 29 30 Peak Build Rating 90 | 7 12 10 18 21 24 19 31 46 47 47 57 75 76 75 90 Average Rating 39 | 5 9 9 16 18 19 19 25 44 46 47 54 72 75 75 86 On Entrance 34 | . 7 9 10 18 20 19 19 27 46 47 47 56 75 75 75 Naked Turns . | . . . . . . . . . . . . . . . . Heaviest Build 105 | 15 32 32 99 103 103 103 105 20 19 19 24 26 26 26 34 Greatest Support 42 | 20 20 26 26 26 26 26 42 20 20 20 25 28 28 28 40 Greatest Overweight (x) 6 | . 1 1 3 3 3 3 3 . 6 . . . . . . Average Overweight (x) . | . . 1 2 3 3 3 2 . . . . . . . . Largest Inventory Capacity 25 | 8 15 15 25 25 25 25 25 25 5 5 5 5 5 5 5 Average Capacity 12 | 7 14 15 23 25 25 25 25 5 5 5 5 5 5 5 5 Most Carried 25 | 8 15 15 25 25 25 25 25 25 5 4 5 5 5 5 5 Average Carried 12 | 5 13 15 19 24 24 25 24 5 4 4 4 4 5 5 4 Final Capacity 25 | 8 15 15 25 25 25 25 25 5 5 5 5 5 5 5 5 Final Carried 25 | 8 15 15 25 25 25 25 25 5 4 4 5 5 5 5 4 Class Distribution -------------------- 53% | Hacker-Sprinter 16% | Mutant 9% | Scavenger-Gunner 9% | Scavenger-Skirmisher 5% | Skirmisher Dominant Class ---------------- Mutant | -10/Materials Mutant | -10/Mines Scavenger-Gunner | -9/Materials Scavenger-Gunner | -9/Mines Mutant | -9/Exiles Skirmisher | -8/Mines Scavenger-Skirmisher | -8/Materials Hacker-Sprinter | -7/Factory Hacker-Sprinter | -7/Lower Caves Hacker-Sprinter | -7/Lower Caves Hacker-Sprinter | -6/Factory Hacker-Sprinter | -5/Factory Hacker-Sprinter | -5/Upper Caves Hacker-Sprinter | -5/Upper Caves Hacker-Sprinter | -4/Factory Resources | -11 -10 -10 -9 -9 -9 -8 -8 -7 -7 -7 -6 -5 -5 -5 -4 ----------- Run | Yrd Mat Min Mat Min Exi Min Mat Fac Low Low Fac Fac Upp Upp Fac Matter Collected 5606 | 261 258 30 205 68 . 74 305 1401 391 . 376 1032 120 28 1057 Remotely 403 | . . . . . . . . . . . . . . . 403 Salvage Created 7043 | 98 489 168 398 244 . 60 385 1572 257 . 552 1491 120 28 1181 Parts 376 | 9 31 9 35 17 . 3 34 89 14 . 27 52 2 1 53 Haulers Intercepted 12 | . 2 . 2 . . . 2 4 . . 1 . . . 1 Recyclers Shooed 3 | . . . . . . . . . . . . 2 . . 1 Parts Field Recycled . | . . . . . . . . . . . . . . . . Retrieved Matter . | . . . . . . . . . . . . . . . . Parts Self-Destructed 38 | . . . . . . . . . 28 3 . . 7 . . Prevented 1 | . . . . . . . . . . 1 . . . . . Kills | -11 -10 -10 -9 -9 -9 -8 -8 -7 -7 -7 -6 -5 -5 -5 -4 ------- Run | Yrd Mat Min Mat Min Exi Min Mat Fac Low Low Fac Fac Upp Upp Fac Combat Hostiles Destroyed 85 | . 7 1 7 5 . 1 5 18 6 . 3 14 2 . 16 Guns 70 | . 3 1 2 . . 1 4 18 6 . 3 14 2 . 16 Cannons 11 | . 4 . 3 3 . . 1 . . . . . . . . AOE 4 | . . . 2 2 . . . . . . . . . . . Classes Destroyed 15 | 3 4 . 3 . . . 1 2 . . 1 1 . . . Worker 23 | 1 4 1 1 . . . 2 10 . . 2 1 . . 1 Builder 5 | . . . 1 . . . 1 2 . . 1 . . . . Tunneler 8 | 2 . 1 2 1 . . 1 . . . 1 . . . . Hauler 12 | . 2 . 2 . . . 2 4 . . 1 . . . 1 Recycler 12 | 1 . 1 1 1 . . 1 3 . . 1 3 . . . Mechanic 1 | . . . . . . . . . . . . 1 . . . Operator 8 | . 2 . 1 . . . 2 2 . . 1 . . . . Watcher 11 | . 1 . 1 . . . 1 2 . . 2 4 . . . Swarmer 20 | . . . 6 3 . . 3 3 2 . . . 2 . 1 Grunt 45 | . 7 1 . 2 . 1 1 10 . . 2 11 . . 10 Brawler 2 | . . . . . . . . 1 . . . . . . 1 Duelist 4 | . . . . . . . 1 . 2 . . . . . 1 Sentry 6 | . . . 1 . . . . 2 1 . . 1 . . 1 Hunter 4 | . . . . . . . . 2 1 . . 1 . . . Programmer 4 | . . . . . . . . . . . 1 1 . . 2 Decomposer 1 | . . . . . . . . . . . . . . 1 . Best Kill Streak 9 | 2 3 1 7 4 . 1 3 5 2 . 2 9 2 . 8 Combat Bots Only 8 | . 3 1 3 4 . 1 3 3 2 . 2 8 2 . 8 Max Kills in Single Turn 3 | 1 2 1 2 2 . 1 1 3 1 . 2 1 2 1 2 Gunslinging 1 | . . . . . . . . . . . . . 1 . . Exploded 2 | . . . 2 2 . . . . . . . . . . . Melee . | . . . . . . . . . . . . . . . . Uniques/NPCs Destroyed . | . . . . . . . . . . . . . . . . Combat | -11 -10 -10 -9 -9 -9 -8 -8 -7 -7 -7 -6 -5 -5 -5 -4 -------- Run | Yrd Mat Min Mat Min Exi Min Mat Fac Low Low Fac Fac Upp Upp Fac Hostile Shots Fired 179 | . 7 8 24 11 . 1 11 58 15 . 1 15 6 . 22 Missed 82 | . 2 2 9 4 . . 2 33 9 . 1 7 2 . 11 Damage Taken 1339 | . 142 82 196 89 . 16 141 243 71 . 12 126 58 . 163 Core 194 | . 12 26 . 39 . . 58 11 . . 12 19 . . 17 Absorbed by Shields . | . . . . . . . . . . . . . . . . Regen/Repaired (Parts) 207 | . . . 22 . . . . 46 . . 121 18 . . . Core Remaining (%) 84 | 100 . 66 . . . 90 86 . . 63 98 . . 88 . Volleys Fired 336 | 5 30 13 24 8 . 3 33 70 20 . 22 47 7 1 53 Largest 6 | 2 2 2 3 3 . 3 3 4 4 . 4 5 5 5 6 Hottest 160 | 70 110 110 150 143 . 143 143 100 100 . 160 125 125 125 150 Shots Fired 1243 | 10 60 26 57 23 . 9 95 280 80 . 66 228 31 5 273 Gun 1107 | 10 47 13 24 7 . 3 57 280 80 . 60 227 30 5 264 Cannon 133 | . 13 13 31 15 . 6 38 . . . 6 1 1 . 9 Launcher 3 | . . . 2 1 . . . . . . . . . . . Special . | . . . . . . . . . . . . . . . . Kinetic 1059 | 5 26 . 15 7 . 3 57 280 80 . 60 227 30 5 264 Thermal 181 | 5 34 26 40 15 . 6 38 . . . 6 1 1 . 9 Explosive 3 | . . . 2 1 . . . . . . . . . . . Electromagnetic . | . . . . . . . . . . . . . . . . Robot Hit Streak 23 | 7 5 5 8 8 . 2 9 8 7 . 9 14 6 7 23 Robot Miss Streak 8 | . 5 6 6 3 . 4 6 8 6 . 3 3 4 . 7 Penetration Max . | . . . . . . . . . . . . . . . . Secondary Targets 13 | . 1 . . . . . . 2 2 . 1 . 2 . 5 Max Gunslinging Chain 2 | . 1 . . . . . . 1 1 . 1 . 2 . 1 Shots Hit Robots 653 | 7 34 12 23 11 . 4 46 151 36 . 40 132 8 1 148 Core Hits 298 | 5 20 7 21 7 . 2 18 56 11 . 20 64 4 1 62 Critical Kills 5 | . . . 1 . . . . 2 . . . 1 . . 1 Critical Parts Destroyed 5 | . . . . . . . 1 2 . . 1 . . . 1 Critical Strikes 11 | . . . 1 . . . 1 5 . . 1 1 . . 2 Destroy 9 | . . . 1 . . . 1 4 . . . 1 . . 2 Smash 1 | . . . . . . . . . . . 1 . . . . Sever 1 | . . . . . . . . 1 . . . . . . . Melee Attacks 30 | . . . . . . . 4 14 . . 12 . . . . Impact 12 | . . . . . . . . . . . 12 . . . . Slashing 18 | . . . . . . . 4 14 . . . . . . . Piercing . | . . . . . . . . . . . . . . . . Sneak Attacks 8 | . . . . . . . 1 6 . . 1 . . . . Combat Hostiles . | . . . . . . . . . . . . . . . . Follow-up Attacks . | . . . . . . . . . . . . . . . . Damage Inflicted 13108 | 84 530 178 474 300 . 65 922 3514 612 . 815 2408 149 19 3038 Guns 10670 | 84 389 87 143 29 . 31 438 2595 612 . 648 2408 149 19 3038 Cannons 1067 | . 141 85 229 159 . 34 388 . . . 31 . . . . Explosions 214 | . . . 102 112 . . . . . . . . . . . Melee 1151 | . . . . . . . 96 919 . . 136 . . . . Ramming 6 | . . 6 . . . . . . . . . . . . . Kinetic 10410 | 35 312 . 96 29 . 31 438 2595 612 . 648 2408 149 19 3038 Thermal 1327 | 49 218 172 276 159 . 34 388 . . . 31 . . . . Explosive 214 | . . . 102 112 . . . . . . . . . . . Electromagnetic . | . . . . . . . . . . . . . . . . Impact 136 | . . . . . . . . . . . 136 . . . . Slashing 1015 | . . . . . . . 96 919 . . . . . . . Piercing . | . . . . . . . . . . . . . . . . Highest Corruption 2 | . . . 2 2 2 2 . . . . . . . . . Average Corruption 2 | . . . 2 2 2 2 . . . . . . . . . Corruption Purged . | . . . . . . . . . . . . . . . . Corruption Blocked . | . . . . . . . . . . . . . . . . Effects 18 | . . . . 6 3 9 . . . . . . . . . Message Errors 7 | . . . . 2 2 3 . . . . . . . . . Matter Fused 2 | . . . . . 1 1 . . . . . . . . . Heat Flow Errors 3 | . . . . 1 . 2 . . . . . . . . . Energy Discharges 1 | . . . . . . 1 . . . . . . . . . Data Loss (minor) 3 | . . . . 2 . 1 . . . . . . . . . Misfires 1 | . . . . 1 . . . . . . . . . . . Alerts 1 | . . . . . . 1 . . . . . . . . . Overload Shots . | . . . . . . . . . . . . . . . . Overflow Damage 365 | . . . 2 31 . . 58 178 . . 96 . . . . Projectiles 4 | . . . 2 . . . 2 . . . . . . . . Explosions 31 | . . . . 31 . . . . . . . . . . . Melee 330 | . . . . . . . 56 178 . . 96 . . . . Knockbacks 2 | . . . . . . . . . . . 2 . . . . Impact 1 | . . . . . . . . . . . 1 . . . . Kinetic . | . . . . . . . . . . . . . . . . Secondary 1 | . . . . . . . . . . . 1 . . . . Self-Inflicted Damage 16 | . . 3 13 . . . . . . . . . . . . Shots 1 | . . . 1 . . . . . . . . . . . . Rammed 1 | . . 1 . . . . . . . . . . . . . Targets Rammed 1 | . . 1 . . . . . . . . . . . . . Kicked . | . . . . . . . . . . . . . . . . Crushed . | . . . . . . . . . . . . . . . . Highest Temperature 324 | 18 96 210 84 96 . 189 324 220 100 . 94 211 88 67 278 Average Temperature 61 | 9 25 61 24 33 . 76 163 46 34 . 40 62 46 40 132 Received Heat Transfer 301 | . 54 45 18 39 . 9 9 78 6 . 12 10 . . 21 Effects 1 | . . . . . . . 1 . . . . . . . . Energy Bleed 1 | . . . . . . . 1 . . . . . . . . Siege Activations . | . . . . . . . . . . . . . . . . Robots Corrupted 2 | . . . . . . . . . . . 2 . . . . Combat Hostiles . | . . . . . . . . . . . . . . . . Parts Fried 7 | . . . . . . . . . . . 7 . . . . Impact Corruptions 5 | . . . . . . . . . . . 5 . . . . Robots Melted . | . . . . . . . . . . . . . . . . Combat Hostiles . | . . . . . . . . . . . . . . . . Parts Melted 7 | . . 2 . . . . 1 . . . 2 1 . . 1 Heat Transferred 3015 | 148 629 444 592 333 . 74 758 . . . 37 . . . . Parts Sabotaged . | . . . . . . . . . . . . . . . . Parts Stolen . | . . . . . . . . . . . . . . . . Parts Stripped . | . . . . . . . . . . . . . . . . Power Chain Reactions . | . . . . . . . . . . . . . . . . Alert | -11 -10 -10 -9 -9 -9 -8 -8 -7 -7 -7 -6 -5 -5 -5 -4 ------- Run | Yrd Mat Min Mat Min Exi Min Mat Fac Low Low Fac Fac Upp Upp Fac Peak Influence 1387 | 20 364 107 243 392 . 25 190 1387 . . 669 732 . . 718 Initial 508 | . 13 94 19 78 . . 9 86 . . 508 228 . . 235 Average 335 | 6 137 62 140 219 . 1 68 765 . . 536 432 . . 348 Maximum Alert Level 4 | . 1 . 1 1 . . . 4 . . 2 3 . . 3 Low Security (%) 50 | 100 67 100 84 66 . 100 100 13 . . . 18 . . 20 Level 1 15 | . 32 . 15 33 . . . 15 . . . 26 . . 52 Level 2 21 | . . . . . . . . 14 . . 100 45 . . 24 Level 3 5 | . . . . . . . . 22 . . . 9 . . 2 Level 4 6 | . . . . . . . . 33 . . . . . . . Level 5 . | . . . . . . . . . . . . . . . . High Security . | . . . . . . . . . . . . . . . . Max Security . | . . . . . . . . . . . . . . . . Squads Dispatched 41 | . 5 1 . . . . 4 16 . . 5 4 . . 6 Investigation 17 | . 3 . . . . . 1 4 . . 4 2 . . 3 Extermination 4 | . . . . . . . . 2 . . 1 1 . . . Reinforcement 11 | . 2 . . . . . 3 3 . . . 1 . . 2 Assault 2 | . . 1 . . . . . 1 . . . . . . . Garrison 7 | . . . . . . . . 6 . . . . . . 1 Intercept . | . . . . . . . . . . . . . . . . Searches Triggered . | . . . . . . . . . . . . . . . . Construction Impeded 1 | . . . . . . . . . . . . . . . 1 Haulers Reinforced 3 | . . . . . . . . 2 . . . 1 . . . Active Scanning Responses . | . . . . . . . . . . . . . . . . Cargo Convoy Interrupts 1 | . . . . . . . . . . . . . . . 1 Stealth | -11 -10 -10 -9 -9 -9 -8 -8 -7 -7 -7 -6 -5 -5 -5 -4 --------- Run | Yrd Mat Min Mat Min Exi Min Mat Fac Low Low Fac Fac Upp Upp Fac Distress Signals 12 | . 1 . 2 . . . 1 1 . . 1 5 . . 1 Communications Jammed . | . . . . . . . . . . . . . . . . Distress Signals . | . . . . . . . . . . . . . . . . Times Spotted 189 | . 24 2 19 11 . 1 19 41 11 . 10 22 4 . 25 Peak Tracking Total 13 | . 3 2 3 5 . . 4 3 5 . 2 5 4 . 13 Tactical Retreats 6 | . . . 1 1 . . 1 1 1 . 1 . . . . Traps | -11 -10 -10 -9 -9 -9 -8 -8 -7 -7 -7 -6 -5 -5 -5 -4 ------- Run | Yrd Mat Min Mat Min Exi Min Mat Fac Low Low Fac Fac Upp Upp Fac Traps Triggered 9 | . 1 . 2 . . . 1 2 . . 2 . . . 1 Indirectly . | . . . . . . . . . . . . . . . . Trap Hack Attempts . | . . . . . . . . . . . . . . . . Triggered . | . . . . . . . . . . . . . . . . Disarmed . | . . . . . . . . . . . . . . . . Reprogrammed . | . . . . . . . . . . . . . . . . Reused . | . . . . . . . . . . . . . . . . Traps Extracted . | . . . . . . . . . . . . . . . . Installed . | . . . . . . . . . . . . . . . . Triggered 1 | . . . . . . . . . . 1 . . . . . Machines | -11 -10 -10 -9 -9 -9 -8 -8 -7 -7 -7 -6 -5 -5 -5 -4 ---------- Run | Yrd Mat Min Mat Min Exi Min Mat Fac Low Low Fac Fac Upp Upp Fac Machines Disabled 40 | . 1 . 8 . . . 3 4 1 . 1 20 . . 2 Max in Single Turn 1 | . 1 . 1 . . . 1 1 . . . 1 . . 1 Garrison Access 5 | . . . . . . . . 2 . . 2 . . . 1 Machines Repaired . | . . . . . . . . . . . . . . . . Machines Dismantled . | . . . . . . . . . . . . . . . . Machines Sabotaged . | . . . . . . . . . . . . . . . . Overloaded Fab Kills . | . . . . . . . . . . . . . . . . Hacking | -11 -10 -10 -9 -9 -9 -8 -8 -7 -7 -7 -6 -5 -5 -5 -4 --------- Run | Yrd Mat Min Mat Min Exi Min Mat Fac Low Low Fac Fac Upp Upp Fac Machines Accessed 79 | . 7 1 8 . 1 . 7 17 1 . 16 8 . . 13 Terminals 46 | . 5 . 5 . . . 4 9 . . 10 5 . . 8 Fabricators 8 | . . . . . . . . 3 . . 2 1 . . 2 Repair Stations 4 | . . . 1 . . . . 1 . . 1 1 . . . Recycling Units 8 | . 2 . 1 . . . 2 1 . . . 1 . . 1 Scanalyzers 5 | . . . 1 . . . 1 1 . . 1 . . . 1 Garrison Access 5 | . . . . . . . . 2 . . 2 . . . 1 Total Hacks 257 | . 14 1 22 . 1 . 17 58 1 . 48 37 . . 58 Successful 151 | . 4 1 17 . 1 . 9 39 1 . 24 22 . . 33 Failed 106 | . 10 . 5 . . . 8 19 . . 24 15 . . 25 Catastrophic 12 | . 3 . 1 . . . 1 2 . . 3 . . . 2 Database Lockouts . | . . . . . . . . . . . . . . . . Manual 90 | . 3 . 7 . 1 . 2 21 . . 15 13 . . 28 Terminals 162 | . 11 . 14 . . . 9 34 . . 27 29 . . 38 Fabricators 29 | . . . . . . . . 11 . . 7 3 . . 8 Repair Stations 13 | . . . 2 . . . . 2 . . 7 2 . . . Recycling Units 16 | . 3 . 1 . . . 4 3 . . . 3 . . 2 Scanalyzers 25 | . . . 5 . . . 4 4 . . 3 . . . 9 Garrison Access 9 | . . . . . . . . 4 . . 4 . . . 1 Terminal Hacks 64 | . 3 1 8 . 1 . 3 14 1 . 6 14 . . 13 Part Schematic 6 | . . . . . . . . 1 . . 1 1 . . 3 Prototype ID Bank 5 | . 1 . . . . . 2 . . . 1 . . . 1 Open Door 2 | . . 1 . . . . . . 1 . . . . . . Level Access Points 1 | . . . . . . . . 1 . . . . . . . Branch Access Points 6 | . 1 . 1 . . . . 1 . . 1 1 . . 1 Emergency Access Points 5 | . . . 1 . . . . 2 . . 1 1 . . . Machine Index 1 | . . . . . . . . . . . 1 . . . . Terminal Index 4 | . . . . . . . . 1 . . 1 1 . . 1 Fabricator Index 2 | . . . . . . . . 1 . . . . . . 1 Repair Station Index 1 | . . . . . . . . . . . . . . . 1 Garrison Index 1 | . . . . . . . . 1 . . . . . . . Alert Level 5 | . . . 1 . . . . . . . . 3 . . 1 Unreport Threat 8 | . . . 1 . . . . 1 . . . 4 . . 2 Locate Traps 7 | . 1 . . . . . 1 2 . . . 1 . . 2 Maintenance Status 1 | . . . 1 . . . . . . . . . . . . Security Status 1 | . . . 1 . . . . . . . . . . . . Hauler Manifests 2 | . . . . . . . . 1 . . . 1 . . . Registered Components 1 | . . . 1 . . . . . . . . . . . . Zone Layout 4 | . . . 1 . . . . 2 . . . 1 . . . Derelict Proto ID Bank 1 | . . . . . 1 . . . . . . . . . . Fabricator Hacks 17 | . . . . . . . . 7 . . 4 2 . . 4 Load Schematic 9 | . . . . . . . . 4 . . 2 1 . . 2 Build 8 | . . . . . . . . 3 . . 2 1 . . 2 Repair Station Hacks 12 | . . . 2 . . . . 2 . . 6 2 . . . Scan Component 6 | . . . 1 . . . . 1 . . 3 1 . . . Repair 6 | . . . 1 . . . . 1 . . 3 1 . . . Recycling Unit Hacks 7 | . 1 . 1 . . . 2 1 . . . 1 . . 1 Retrieve Components 7 | . 1 . 1 . . . 2 1 . . . 1 . . 1 Scanalyzer 24 | . . . 4 . . . 4 4 . . 3 . . . 9 Insert Component 11 | . . . 2 . . . 2 2 . . 1 . . . 4 Analyze 13 | . . . 2 . . . 2 2 . . 2 . . . 5 Garrison Access Hacks 5 | . . . . . . . . 2 . . 2 . . . 1 Seal Access 5 | . . . . . . . . 2 . . 2 . . . 1 Unauthorized Hacks 22 | . . . 2 . . . . 9 . . 3 3 . . 5 Terminals 12 | . . . 2 . . . . 4 . . 2 1 . . 3 Assimilate 5 | . . . 1 . . . . 2 . . 1 . . . 1 Botnet 7 | . . . 1 . . . . 2 . . 1 1 . . 2 Fabricators 6 | . . . . . . . . 3 . . 1 . . . 2 Prioritize 4 | . . . . . . . . 1 . . 1 . . . 2 Haulers 1 | . . . . . . . . 1 . . . . . . . Recompile 1 | . . . . . . . . 1 . . . . . . . Repair Stations . | . . . . . . . . . . . . . . . . Recycling Units 4 | . . . . . . . . 2 . . . 2 . . . Reject 2 | . . . . . . . . 1 . . . 1 . . . Mask 2 | . . . . . . . . 1 . . . 1 . . . Scanalyzers . | . . . . . . . . . . . . . . . . Garrison Access . | . . . . . . . . . . . . . . . . Data Cores Recovered 1 | . . . 1 . . . . . . . . . . . . Used 1 | . . . 1 . . . . . . . . . . . . Hacking Detections 59 | . 6 . 6 . . . 7 13 . . 11 6 . . 10 Full Trace Events 12 | . 2 . . . . . . 2 . . 3 2 . . 3 Feedback Events . | . . . . . . . . . . . . . . . . Feedback Blocked . | . . . . . . . . . . . . . . . . Robot Schematics Acquired . | . . . . . . . . . . . . . . . . Robots Built . | . . . . . . . . . . . . . . . . Authchips . | . . . . . . . . . . . . . . . . Time . | . . . . . . . . . . . . . . . . Total Robot Build Rating . | . . . . . . . . . . . . . . . . Part Schematics Acquired 17 | . . . 2 . . . 2 3 . . 2 1 . . 7 Parts Built 8 | . . . . . . . . 3 . . 3 1 . . 1 Authchips 2 | . . . . . . . . 2 . . . . . . . Time 445 | . . . . . . . . 232 . . 67 67 . . 79 Total Part Build Rating 33 | . . . . . . . . 9 . . 14 4 . . 6 Parts Repaired 6 | . . . 1 . . . . 1 . . 3 1 . . . Time 319 | . . . 38 . . . . 60 . . 171 50 . . . Parts Recycled . | . . . . . . . . . . . . . . . . Recycled Matter . | . . . . . . . . . . . . . . . . Retrieved Matter . | . . . . . . . . . . . . . . . . Retrieved Components 26 | . 3 . 10 . . . 9 2 . . . 1 . . 1 Parts Scanalyzed 11 | . . . 2 . . . 2 2 . . 1 . . . 4 Part Schematics Acquired 11 | . . . 2 . . . 2 2 . . 1 . . . 4 Parts Damaged . | . . . . . . . . . . . . . . . . Bothacking | -11 -10 -10 -9 -9 -9 -8 -8 -7 -7 -7 -6 -5 -5 -5 -4 ------------ Run | Yrd Mat Min Mat Min Exi Min Mat Fac Low Low Fac Fac Upp Upp Fac Used RIF Installer . | . . . . . . . . . . . . . . . . Robots Hacked . | . . . . . . . . . . . . . . . . Non-combat . | . . . . . . . . . . . . . . . . Combat . | . . . . . . . . . . . . . . . . Robot Hacks Applied . | . . . . . . . . . . . . . . . . Relay Couplers Released . | . . . . . . . . . . . . . . . . Fabnet Peak Effective % . | . . . . . . . . . . . . . . . . Robots Rewired . | . . . . . . . . . . . . . . . . Allies Hacked . | . . . . . . . . . . . . . . . . Hacks Repelled . | . . . . . . . . . . . . . . . . Allies | -11 -10 -10 -9 -9 -9 -8 -8 -7 -7 -7 -6 -5 -5 -5 -4 -------- Run | Yrd Mat Min Mat Min Exi Min Mat Fac Low Low Fac Fac Upp Upp Fac Total Allies 9 | . 1 5 . . . . . 1 . . 1 . . . 1 Largest Group 5 | . 1 5 3 1 1 1 1 2 1 1 2 2 1 1 2 Highest-Rated Group 177 | . 60 131 91 68 68 68 74 94 98 98 138 158 133 133 177 Highest-Rated Ally 151 | . 60 60 68 68 68 68 74 91 98 98 112 133 133 133 151 Total Orders 3 | . . . . . . . . . . . . 2 . . 1 STAY 1 | . . . . . . . . . . . . 1 . . . FOLLOW 1 | . . . . . . . . . . . . 1 . . . EXPLORE 1 | . . . . . . . . . . . . . . . 1 Ally Attacks 291 | . 24 10 30 16 . . 26 79 20 2 12 37 2 . 33 Total Damage 12907 | . 626 121 604 352 . 65 871 3292 790 95 510 3455 65 . 2061 Kills 114 | . 10 1 11 4 . . 9 34 7 1 4 15 2 . 16 Allies Corrupted . | . . . . . . . . . . . . . . . . Allies Melted . | . . . . . . . . . . . . . . . . Intel | -11 -10 -10 -9 -9 -9 -8 -8 -7 -7 -7 -6 -5 -5 -5 -4 ------- Run | Yrd Mat Min Mat Min Exi Min Mat Fac Low Low Fac Fac Upp Upp Fac Robot Analysis Total . | . . . . . . . . . . . . . . . . Derelict Logs Recovered 6 | . . 1 . 1 . . . . 2 1 . . . 1 . Drone Launches 1 | . . . . . . . . . . . . . . . 1 Drone Recoveries . | . . . . . . . . . . . . . . . . Exploration | -11 -10 -10 -9 -9 -9 -8 -8 -7 -7 -7 -6 -5 -5 -5 -4 ------------- Run | Yrd Mat Min Mat Min Exi Min Mat Fac Low Low Fac Fac Upp Upp Fac Turns Passed 11955 | 111 918 664 1156 309 364 682 1360 2074 665 141 1293 962 322 156 778 Spaces Moved 13110 | 85 683 433 720 165 257 490 767 2754 884 231 1937 1549 582 266 1307 Core 3 | 2 . . . . . . . . 1 . . . . . . Treads . | . . . . . . . . . . . . . . . . Legs . | . . . . . . . . . . . . . . . . Wheels 3598 | 83 683 433 720 165 257 490 767 . . . . . . . . Hover . | . . . . . . . . . . . . . . . . Flight 9509 | . . . . . . . . 2754 883 231 1937 1549 582 266 1307 Fastest Speed 21 | 50 80 95 105 135 135 135 116 31 29 29 26 26 27 27 21 Average Speed 53 | 79 94 102 128 135 135 135 119 31 31 29 26 27 27 27 28 Slowest Speed 350 | 80 95 105 135 135 135 135 125 31 350 29 29 28 27 27 32 Overloaded Moves 13 | . . . . . . . . . . . . . . . 13 Propulsion Burnouts . | . . . . . . . . . . . . . . . . Robots Hopped 17 | . . . . . . . . 2 . . 2 8 . . 5 Cave-ins Triggered . | . . . . . . . . . . . . . . . . Exploration Rate (%) 47 | 5 90 89 61 34 40 89 45 41 70 18 30 29 64 20 27 Regions Visited 15 Branch Regions 8 Pre-discovered Areas . | . . . . . . . . . . . . . . . . Known Exits Taken 7 | . 1 . 1 . . 1 . 1 . 1 1 1 . . . Unknown Exits Taken 8 | 1 . 1 . 1 1 . 1 . 1 . . . 1 1 . Scrap Searched 10 | . . 1 . 1 . 1 . . 3 1 . . 3 . . Spaces Dug 37 | . . . . 12 . . 3 1 . . 13 1 . . 7 Terrain Destroyed 48 | . . . 8 12 . . 3 2 1 . 13 1 . . 8 Melee 14 | . . . . . . . 3 1 . . 10 . . . . Projectile 14 | . . . . . . . . 1 1 . 3 1 . . 8 AOE 20 | . . . 8 12 . . . . . . . . . . . Terrain Rammed . | . . . . . . . . . . . . . . . . Walls Destroyed . | . . . . . . . . . . . . . . . . Machines Disabled . | . . . . . . . . . . . . . . . . Actions | -11 -10 -10 -9 -9 -9 -8 -8 -7 -7 -7 -6 -5 -5 -5 -4 --------- Run | Yrd Mat Min Mat Min Exi Min Mat Fac Low Low Fac Fac Upp Upp Fac Total 17619 | 115 907 626 903 237 274 504 1149 3878 1255 304 2665 2042 739 348 1673 Wait 3804 | 9 139 176 128 54 8 12 289 972 342 74 651 438 149 82 281 Move 13062 | 84 682 432 719 164 256 489 766 2749 883 230 1932 1533 581 265 1297 Hop 16 | . . . . . . . . 2 . . 2 7 . . 5 Pick Up 78 | 8 21 . 10 4 . . 16 7 1 . 7 1 . . 3 Fast Attach 38 | 7 1 1 4 . 4 . 1 5 2 . 6 3 . . 4 Attach 28 | 1 2 . 1 . . . 2 12 1 . 3 3 . . 3 Detach 5 | 1 . . . . 1 . . . . . 1 2 . . . Swap 75 | . 10 1 9 3 1 . 14 15 1 . 6 5 2 . 8 Drop 118 | . 22 2 8 4 4 . 24 32 5 . 8 3 . . 6 Fire 336 | 5 30 13 24 8 . 3 33 70 20 . 22 47 7 1 53 Melee 30 | . . . . . . . 4 14 . . 12 . . . . Ram 1 | . . 1 . . . . . . . . . . . . . Kick . | . . . . . . . . . . . . . . . . Crush . | . . . . . . . . . . . . . . . . Escape Stasis 28 | . . . . . . . . . . . 15 . . . 13 Rewire . | . . . . . . . . . . . . . . . . Trap . | . . . . . . . . . . . . . . . . Miscellaneous . | . . . . . . . . . . . . . . . . Route ------- -11/Scrapyard -10/Materials (discovered 5 exits: *Mat x3 / *Min x2) -10/Mines -9/Materials (discovered 4 exits: *Mat x3 / *Min) -9/Mines (discovered 2 exits: *Mat / *Exi) -9/Exiles -8/Mines -8/Materials -7/Factory (discovered 8 exits: *Fac x4 / *Sto x2 / *Low x2) -7/Lower Caves -7/Lower Caves -6/Factory (discovered 6 exits: *Fac x2 / *Low x2 / Ext x2) -5/Factory (discovered 2 exits: *Upp x2) -5/Upper Caves -5/Upper Caves -4/Factory (discovered 3 exits: Res / *Upp x2) History --------- Turn | Location | Event 16 | -11/Scrapyard | Discovered new exit (range 15) 112 | -11/Scrapyard | Entered Materials 308 | -10/Materials | Build established: Mutant 372 | -10/Materials | Identified exit to Mines 657 | -10/Materials | Discovered new exit (range 5) 841 | -10/Materials | Discovered new exit (range 13) 951 | -10/Materials | Discovered new exit (range 13) 1030 | -10/Materials | Entered Mines 1033 | -10/Mines | Received a Mining Laser from a helpful Derelict 1050 | -10/Mines | Met a Derelict bent on vengeance 1206 | -10/Mines | Assisted by bots powering up and referring to "LRC-V3" 1325 | -10/Mines | Found the Drone Emporium 1445 | -10/Mines | Met a Derelict testing a Signal Generator 1445 | -10/Mines | Learned 8 Materials zone layouts 1619 | -10/Mines | Discovered new exit (range 10) 1694 | -10/Mines | Entered Materials 1694 | -9/Materials | Accompanied by 2 allies 1694 | -9/Materials | Evolved 2 slots: Utility x1, Weapon x1 1695 | -9/Materials | Identified exit to Materials 1695 | -9/Materials | Identified exit to Mines 2158 | -9/Materials | Build established: Scavenger-Gunner 2716 | -9/Materials | Repaired Imp. Heat Sink 2850 | -9/Materials | Entered Mines 2935 | -9/Mines | Discovered exit to Materials (range 11) 2973 | -9/Mines | Learned Materials stockpile data 3019 | -9/Mines | Received a Rocket Launcher from a helpful Derelict 3131 | -9/Mines | Deemed a non-threat by the Exiles lab entrance 3133 | -9/Mines | Discovered new exit (range 5) 3159 | -9/Mines | Entered Exiles 3183 | -9/Exiles | Discovered new exit (range 15) 3197 | -9/Exiles | Met 8R-AWN 3219 | -9/Exiles | Met EX-HEX 3254 | -9/Exiles | Met EX-BIN 3272 | -9/Exiles | Aligned with FarCom system 3273 | -9/Exiles | Given EX-Vault access code 3304 | -9/Exiles | Opened EX-Vault 3328 | -9/Exiles | Found Longsword +1 3357 | -9/Exiles | Warned to stay clear of 0b10 Research branches 3463 | -9/Exiles | Build established: Mutant 3523 | -9/Exiles | Left Exiles lab with Longsword +1 3523 | -9/Exiles | Entered Mines 3821 | -8/Mines | Build established: Skirmisher 4186 | -8/Mines | Discovered exit to Materials (range 10) 4205 | -8/Mines | Entered Materials 4205 | -8/Materials | Evolved 2 slots: Propulsion x1, Utility x1 4517 | -8/Materials | Build established: Scavenger-Skirmisher 5491 | -8/Materials | Discovered new exit (range 3) 5565 | -8/Materials | Entered Factory 5565 | -7/Factory | Evolved 2 slots: Propulsion x1, Weapon x1 5673 | -7/Factory | Discovered new exit (range 15) 5868 | -7/Factory | Build established: Hacker-Sprinter 5868 | -7/Factory | Identified exit to Storage 5868 | -7/Factory | Identified exit to Lower Caves 5870 | -7/Factory | Garrison activated, responded to threat 5981 | -7/Factory | Garrison activated, responded to threat 6429 | -7/Factory | Garrison activated, responded to threat 6597 | -7/Factory | Garrison activated, responded to threat 6610 | -7/Factory | Discovered new exit (range 16) 6686 | -7/Factory | Fabricated Enh. Autogun? 6917 | -7/Factory | Discovered new exit (range 13) 7094 | -7/Factory | Fabricated Enh. Autogun? 7140 | -7/Factory | Identified exit to Factory 7217 | -7/Factory | Repaired Enh. Autogun 7334 | -7/Factory | Fabricated Enh. Autogun (x1) 7565 | -7/Factory | First assault squad dispatched 7639 | -7/Factory | Entered Lower Caves 7645 | -7/Lower Caves | Attracted the attention of an 0b10 checkpoint 7688 | -7/Lower Caves | Learned Factory stockpile data 7717 | -7/Lower Caves | Learned 12 Factory zone layouts 8283 | -7/Lower Caves | Discovered new exit (range 7) 8304 | -7/Lower Caves | Entered another Lower Caves area 8313 | -7/Lower Caves | Discovered exit to Factory (range 10) 8345 | -7/Lower Caves | Learned Factory terminal intel 8366 | -7/Lower Caves | Encountered a Warlord checkpoint 8445 | -7/Lower Caves | Entered Factory 8445 | -6/Factory | Evolved 2 slots: Propulsion x1, Utility x1 8446 | -6/Factory | Identified exit to Factory 8446 | -6/Factory | Identified exit to Extension 8448 | -6/Factory | Loaded intel: 28 terminal locations 8792 | -6/Factory | Repaired Enh. Autogun 8846 | -6/Factory | Repaired Imp. Flight Unit 8909 | -6/Factory | Repaired Enh. Autogun 9153 | -6/Factory | Discovered new exit (range 8) 9158 | -6/Factory | Identified exit to Lower Caves 9285 | -6/Factory | Discovered exit to Factory (range 5) 9446 | -6/Factory | Fabricated Weapon Mount (x2) 9610 | -6/Factory | Fabricated Cld. VTOL Module? 9738 | -6/Factory | Entered another Factory area 9738 | -5/Factory | Accompanied by 1 ally 9738 | -5/Factory | Evolved 2 slots: Utility x1, Weapon x1 9755 | -5/Factory | Identified exit to Upper Caves 9944 | -5/Factory | Fabricated Cld. VTOL Module? 10069 | -5/Factory | Destroyed 8 combat bots 10371 | -5/Factory | Repaired Weapon Mount 10700 | -5/Factory | Entered Upper Caves 10986 | -5/Upper Caves | Discovered new exit (range 13) 11022 | -5/Upper Caves | Entered another Upper Caves area 11026 | -5/Upper Caves | Learned location of 1 exit from Factory 11030 | -5/Upper Caves | Discovered new exit (range 10) 11178 | -5/Upper Caves | Entered Factory 11178 | -4/Factory | Evolved 2 slots: Propulsion x1, Weapon x1 11179 | -4/Factory | Identified exit to Research 11376 | -4/Factory | Discovered new exit (range 16) 11435 | -4/Factory | Garrison activated, responded to threat 11545 | -4/Factory | Identified exit to Upper Caves 11787 | -4/Factory | Fabricated Adv. Hacking Suite (x1) 11908 | -4/Factory | Destroyed 8 combat bots 11935 | -4/Factory | Cargo convoy interrupted 11949 | -4/Factory | Core integrity fell below 50% 11956 | -4/Factory | Core integrity fell below 20% 11956 | -4/Factory | Core destroyed Last Messages --------------- 11945_ P-70 Sage destroyed. 11945_ Switching to secondary target: X-77 Beamer. 11945_ Player 2 attaches Carbon-fiber Leg. Player 2: "Oh well, better the Carbon-fiber Leg than my core. Or should I say OUR core, hahaha!" 11945_ Slug penetrates Player 2. 11945_ K-01 Serf collects debris. 11946_ Player 2 attaches Mic. Fission Core. 11946_ Slug penetrates Player 2. 11946_ Chain reaction triggered in Mic. Fission Core. 11947_ K-01 Serf collects debris. 11947_ Slug penetrates Player 2. 11948_ Slug penetrates Wall. 11950_ K-01 Serf collects debris. 11951_ Slug penetrates Administrator 7a. 11951_ Administrator 7a destroyed. 11952_ Acquired 13 matter. 11952_ K-01 Serf collects debris. 11953_ Player 2 knocked back. 11954_ K-01 Serf collects debris. Map ----- +----------------------------------------------------+ | ###### #?????# """""""?? #??? | | #?????# ]! """"""""" #??? | | ######### ]! """"""""" #??? | | """ """ " " ]! ^ """"""""" #### | | """ """ "T" """"""""" | | """ """ """ ^ * ^ | | | | = | | ^^ ! = | | ######### * | | ?##?????###########+### ####### | | # #?????????# # ###########+###### | | "#??????????# "" *## # # | | #???????????# | "" ## # "" """" + | | #???????????# """ ## # """ """" # | | #???????????# """ ## # "F """" # | | #???????????# " " """ ## # """ """" # | | #???????????# "T" ## # "" """" ####+ | | #???????????# """ ## # """" # | | #?????????#########+#### # # | | #????????# # # # | | #????????# """ """ """ # # * # | | #????????# """ """ """ # # # | | #????????# """ """ """ # # % # | | #?????##?# # #########+#### "" | | ######"#?# ! # @ T#??????# #??# "" | | #??#########+##### #?????## ##?# "" | | = #????????# #?# ######## ### "" | | #????????# ### | | #????????+ ######### ###! | | #????????# ###### ####???????#####?##### | | #????????# #????# #???????????########## | | = #????????#######????# #???????????# | | #???????????????????# #???????????# | | =#???????????????????# #???????????# | | #######??????????????????? #???????????# | | ??????????????????????????#+#???????????# | | ????????????????????????????????????????# | | ????????????????????????????????????????# | | ????????????????????????????????????????# | | ????????????????????????????????????????# | | ??????????##???????????##############???# | | ##########"#???????????# #???# | | #????????????# #???# | | #????????????# ###########+## | | ! #????????????# """" """" # | | #????????????# """" """" # ^ | | !! "" #????????????# """" """" + ^ | | !! """ #????????????# """" """" # ^ | | """" #????????????# """" """" # ^ | +----------------------------------------------------+ Best States ------------- Heat Dissipation 70 Energy Generation 14 Energy Capacity 280 Matter Stores 300 Matter Capacity 300 Sight Range 22 Terrain Scan Density 10 Armor Coverage 300 Evasion (%) 65 Targeting Accuracy 20 Offensive Hacking 34 Defensive Hacking 12 Authchip Count 1 Item Schematics ----------------- Imp. Flight Unit | -9/Materials | Scanalyzed Lgt. Armor Plating | -9/Materials | Scanalyzed Imp. Heat Sink | -8/Materials | Scanalyzed Hacking Suite | -8/Materials | Scanalyzed Minigun | -7/Factory | Scanalyzed Lgt. Nuclear Core | -7/Factory | Scanalyzed Enh. Autogun | -7/Factory | Hacked Weapon Mount | -6/Factory | Hacked Cld. VTOL Module | -6/Factory | Scanalyzed Mic. Fission Core | -5/Factory | Hacked Lrn. Tractor Beam | -4/Factory | Scanalyzed Recoil Nullifier | -4/Factory | Scanalyzed Mic. Nuclear Core | -4/Factory | Scanalyzed Phase Cannon | -4/Factory | Scanalyzed Field Propulsion Array | -4/Factory | Hacked Adv. Hacking Suite | -4/Factory | Hacked Adv. System Shield | -4/Factory | Hacked Robot Schematics ------------------ None Fabricated ------------ Enh. Autogun | x1 | -7/Factory | Authchip Enh. Autogun | x1 | -7/Factory | Authchip Enh. Autogun | x1 | -7/Factory Weapon Mount | x2 | -6/Factory Cld. VTOL Module | x1 | -6/Factory Cld. VTOL Module | x1 | -5/Factory Adv. Hacking Suite | x1 | -4/Factory Alien Tech Used ----------------- None Achievements -------------- None Challenges ------------ None Player 2 | -11 -10 -10 -9 -9 -9 -8 -8 -7 -7 -7 -6 -5 -5 -5 -4 ---------- Run | Yrd Mat Min Mat Min Exi Min Mat Fac Low Low Fac Fac Upp Upp Fac Slots Evolved 12 | . . 2 . . . 2 2 . . 2 2 . . 2 . Power 1 | . . . . . . . . . . 1 . . . . . Propulsion 2 | . . . . . . 1 1 . . . . . . . . Utility 6 | . . . . . . 1 1 . . 1 2 . . 1 . Weapon 3 | . . 2 . . . . . . . . . . . 1 . Parts Attached 131 | . 14 . 9 . . . 7 30 3 . 20 21 . . 27 Parts Lost 36 | . . . . . . . . 3 3 . 3 3 . . 24 Damage Taken 8077 | . 254 . 97 105 . . 217 1784 606 48 403 1112 33 . 3418 Core 1543 | . 47 . . . . . 14 125 100 18 5 82 16 . 1136 Player 2/Cogmind (%) 88 | . 79 . . . . . 19 91 100 100 29 81 100 . 98 Absorbed by Shields . | . . . . . . . . . . . . . . . . Damage Inflicted 12734 | . 626 21 531 352 . 65 871 3292 790 95 510 3455 65 . 2061 Player 2/Cogmind (%) 49 | . 54 10 52 53 . 50 48 48 56 100 38 58 30 . 40 Combat Hostiles Destroyed 87 | . 6 . 5 4 . . 7 25 7 1 3 14 2 . 13 Player 2/Cogmind (%) 50 | . 46 . 41 44 . . 58 58 53 100 50 50 50 . 44 Game ------ Seed PhasingPrecisionFocus Manual? 0 Play Time 02:10:26 Cumulative 225.9 hours Start 2025.01.13 @ 21:46:44 End 2025.01.15 @ 01:25:09 Sessions 10 Manual Loads 0 Difficulty Rogue Special Mode AFD2020/Player2 Game No. 58 Rogue 57 Adventurer 1 Explorer 0 Win Type - Total 19 Types 5/3/6/0/0/0/5/0/0 Lore% 59 Gallery% 75 Achievement% 68 Wizard Run 0 Options --------- Layout 0 ASCII 0 Keyboard 0 Movement Mouse Keybinds 0 Fullscreen 1 Font 18/Terminus Map View 76x50 Zoom Use 0% Tactical HUD 1 Map Filters NONE Filters NONE Steam 0 RUN: 14c7ddcb-02fd-4c7b-8176-335a1ead3037